bitfinex/quotes_SOLUSD_20260306
["timestamp","ask_amount","ask_price","bid_price","bid_amount"]
[1772820544050,11.81418647,84.644,84.61,0.81175385]
[1772820544451,0.44247916,84.643,84.61,0.81175385]
[1772820545456,0.44389446,84.639,84.61,0.81175385]
[1772820545637,0.44389446,84.629,84.595,0.81175385]
[1772820545951,0.44389446,84.627,84.599,11.82047069]
[1772820547450,0.44389446,84.627,84.593,11.82124526]
[1772820547645,0.44667648,84.619,84.594,0.81175385]
[1772820548059,11.81781654,84.618,84.594,0.81175385]
[1772820548364,11.81781654,84.618,84.596,0.81175385]
[1772820549458,0.44939496,84.617,84.591,11.82151394]
[1772820549657,0.44939496,84.617,84.591,0.81175385]
[1772820550061,0.45073082,84.615,84.591,0.81175385]
[1772820550272,11.81697863,84.624,84.593,0.81175385]
[1772820550478,12.26770945,84.624,84.593,0.81175385]
[1772820550767,0.45073082,84.623,84.593,0.81175385]
[1772820551751,0.45205134,84.619,84.588,11.8219308]
[1772820552067,41.35942521,84.624,84.588,0.81175385]
[1772820552068,11.81921331,84.608,84.588,0.81175385]
[1772820552974,11.81921331,84.608,84.589,0.81175385]
[1772820554052,11.81862297,84.613,84.589,0.81175385]
[1772820554557,29.54222975,84.625,84.591,0.81175385]
[1772820554558,11.81767688,84.619,84.591,0.81175385]
[1772820555668,11.81688308,84.625,84.591,0.81175385]
[1772820556445,11.81628047,84.629,84.593,0.81175385]
[1772820557073,12.27471037,84.629,84.593,0.81175385]
[1772820557274,0.45966199,84.628,84.593,0.81175385]
[1772820558152,11.81628047,84.629,84.593,0.81175385]
[1772820558471,0.46087993,84.646,84.597,0.81175385]
[1772820558775,0.46087993,84.646,84.598,0.81175385]
[1772820559156,0.46208387,84.644,84.598,0.81175385]
[1772820559673,41.34916415,84.645,84.598,0.81175385]
[1772820559674,4.84655216,84.62,84.598,0.81175385]
[1772820560058,0.46208387,84.639,84.598,0.81175385]
[1772820560979,0.463274,84.637,84.6,0.81175385]
[1772820561475,11.81502398,84.638,84.6,0.81175385]
[1772820562260,6.28286823,84.65,84.602,0.81175385]
[1772820562261,0.46561339,84.648,84.602,0.81175385]
[1772820562569,11.81348864,84.649,84.608,0.81175385]
[1772820562978,11.81348864,84.649,84.61,0.81175385]
[1772820563358,0.46676297,84.639,84.61,0.81175385]
[1772820563860,11.81348864,84.649,84.61,0.81175385]
[1772820565174,6.7496312,84.65,84.614,0.81175385]
[1772820565175,1.89839994,84.65,84.614,0.81175385]
[1772820565377,1.89839994,84.65,84.618,0.81175385]
[1772820567080,1.89839994,84.65,84.62,0.81175385]
[1772820568256,0.47231582,84.666,84.62,0.81175385]
[1772820568473,0.47231582,84.659,84.62,0.81175385]
[1772820569069,0.47231582,84.659,84.622,0.81175385]
[1772820569278,12.28516233,84.662,84.622,0.81175385]
[1772820569574,0.47338842,84.661,84.622,0.81175385]
[1772820570266,4.38446829,84.66,84.622,0.81175385]
[1772820570472,0.47444869,84.659,84.622,0.81175385]
[1772820571185,0.47549679,84.639,84.608,0.81175385]
[1772820572166,0.47549679,84.639,84.603,11.81991182]
[1772820572373,0.47549679,84.639,84.604,0.79112379]
[1772820573173,0.47856941,84.637,84.605,11.8196324]
[1772820573569,0.47856941,84.629,84.594,12.61229314]
[1772820573766,0.47856941,84.629,84.595,0.79112379]
[1772820574084,0.47957018,84.636,84.595,0.79112379]
[1772820574257,0.47957018,84.636,84.597,0.79112379]
[1772820575081,0.47957018,84.636,84.599,0.79112379]
[1772820575383,11.81544278,84.635,84.599,0.79112379]
[1772820575578,0.48055945,84.643,84.599,0.79112379]
[1772820575778,0.48055945,84.642,84.599,0.79112379]
[1772820577169,0.48250404,84.64,84.601,0.79112379]
[1772820577556,0.48250404,84.64,84.596,0.14216157]
[1772820577557,0.48250404,84.639,84.596,0.79112379]
[1772820577759,0.48250404,84.619,84.59,0.79112379]
[1772820578765,0.48345962,84.609,84.575,0.79112379]
[1772820578984,0.48345962,84.599,84.568,0.79112379]
[1772820579186,11.82061041,84.598,84.568,12.61591758]
[1772820579364,0.48440422,84.597,84.568,12.61591758]
[1772820579716,0.48440422,84.597,84.568,11.82479379]
[1772820579998,0.48440422,84.589,84.56,0.79112379]
[1772820581482,0.48626099,84.605,84.562,0.79112379]
[1772820582185,0.48717342,84.599,84.562,0.79112379]
[1772820582964,0.48717342,84.609,84.567,0.14216157]
[1772820583190,0.48717342,84.609,84.563,0.42648471]
[1772820583191,0.48717342,84.609,84.568,0.79112379]
[1772820583783,0.48807536,84.607,84.57,0.79112379]
[1772820584296,11.8183752,84.614,84.57,0.79112379]
[1772820584469,0.48896694,84.613,84.57,0.79112379]
[1772820584987,4.82477569,84.631,84.57,0.79112379]
[1772820584988,0.48896694,84.632,84.573,0.79112379]
[1772820585284,0.48896694,84.632,84.579,0.79112379]
[1772820585486,0.48896694,84.632,84.587,0.79112379]
[1772820585691,11.81600122,84.631,84.589,0.79112379]
[1772820585872,12.30584951,84.631,84.589,0.79112379]
[1772820586100,0.48984829,84.619,84.589,0.79112379]
[1772820586518,0.49071951,84.629,84.589,0.79112379]
[1772820587115,4.87604901,84.62,84.589,0.79112379]
[1772820587921,41.35600429,84.631,84.591,0.79112379]
[1772820587922,11.81753079,84.621,84.591,0.79112379]
[1772820588121,0.49158072,84.628,84.591,0.79112379]
[1772820588324,0.49243204,84.635,84.591,0.79112379]
[1772820589298,0.49243204,84.635,84.592,0.14216157]
[1772820589620,0.49243204,84.635,84.593,0.79112379]
[1772820590116,0.49327358,84.633,84.595,0.79112379]
[1772820590315,11.81558239,84.634,84.595,0.79112379]
[1772820590619,0.49410546,84.629,84.595,0.79112379]
[1772820592017,11.81781654,84.618,84.595,0.79112379]
[1772820592227,11.81642009,84.628,84.597,0.79112379]
[1772820593001,12.31216075,84.628,84.597,0.79112379]
[1772820593322,0.4965442,84.627,84.598,11.82061041]
[1772820593525,0.4965442,84.619,84.591,0.79112379]
[1772820593723,0.4965442,84.619,84.586,12.61338896]
[1772820593903,0.4965442,84.619,84.587,0.79112379]
[1772820596027,0.49889986,84.617,84.587,0.79112379]
[1772820596227,0.49889986,84.617,84.588,11.82200784]
[1772820597330,0.49889986,84.617,84.588,12.64126414]
[1772820598017,11.81809586,84.616,84.588,12.64126414]
[1772820598329,0.50042556,84.615,84.588,0.8192563]
[1772820600038,0.50191641,84.613,84.581,0.8192563]
[1772820600332,0.50264901,84.609,84.581,0.8192563]
[1772820600629,41.36431322,84.614,84.581,0.8192563]
[1772820600816,41.86696223,84.614,84.581,0.8192563]
[1772820601015,12.32102421,84.614,84.581,0.8192563]
[1772820601518,11.81781906,84.618,84.581,0.8192563]
[1772820602837,0.50479673,84.628,84.583,0.80768505]
[1772820603732,4.38812958,84.62,84.583,0.80768505]
[1772820604039,4.89362583,84.62,84.583,0.80768505]
[1772820604933,12.32316446,84.62,84.584,41.37898419]
[1772820605124,0.50687128,84.633,84.587,0.80768505]
[1772820605327,0.50687128,84.629,84.587,0.80768505]
[1772820606441,11.81488439,84.639,84.597,0.80768505]
[1772820607439,0.50821491,84.638,84.599,0.80768505]
[1772820608345,11.81488439,84.639,84.599,0.80768505]
[1772820608641,11.81488439,84.639,84.598,41.37213645]
[1772820608642,11.81488439,84.639,84.601,0.80768505]
[1772820609728,0.50887517,84.645,84.607,0.80768505]
[1772820609729,0.50952785,84.645,84.607,0.80768505]
[1772820609928,0.50952785,84.643,84.607,0.80768505]
[1772820610317,0.51017303,84.639,84.607,0.80768505]
[1772820610524,0.51017303,84.639,84.6,41.37115838]
[1772820610525,0.51017303,84.639,84.609,0.80768505]
[1772820610722,4.38812958,84.64,84.609,0.80768505]
[1772820610723,12.32519701,84.638,84.609,0.80768505]
[1772820611950,0.5108108,84.637,84.606,11.81937009]
[1772820612152,0.5108108,84.619,84.578,0.80768505]
[1772820612343,0.51144124,84.609,84.578,0.80768505]
[1772820612527,0.51144124,84.609,84.58,0.80768505]
[1772820613126,0.51144124,84.607,84.579,11.82326582]
[1772820615942,0.51328946,84.605,84.574,0.80768505]
[1772820617526,0.51448649,84.599,84.574,0.80768505]
[1772820618026,11.82061041,84.598,84.575,11.823825]
[1772820618225,11.82061041,84.598,84.575,12.63151005]
[1772820618447,0.51507472,84.597,84.567,0.80768505]
[1772820619634,0.51507472,84.597,84.568,0.80768505]
[1772820619843,0.51565619,84.589,84.555,0.80768505]
[1772820620148,11.82200784,84.588,84.556,0.80768505]
[1772820620452,11.82151201,84.592,84.556,0.80768505]
[1772820620961,11.82151201,84.592,84.558,0.80768505]
[1772820622026,0.51679917,84.591,84.56,0.80768505]
[1772820622547,0.51736083,84.598,84.56,0.80768505]
[1772820623037,11.82047069,84.599,84.56,0.80768505]
[1772820623550,0.51791604,84.598,84.56,0.80768505]
[1772820623746,0.51791604,84.589,84.559,11.82606227]
[1772820623926,0.51791604,84.587,84.558,0.80768505]
[1772820624125,0.51846488,84.579,84.536,0.80768505]
[1772820624329,4.38812958,84.58,84.536,0.80768505]
[1772820624330,0.51846488,84.569,84.536,0.80768505]
[1772820624529,0.51846488,84.579,84.537,0.80768505]
[1772820624939,0.51846488,84.579,84.538,0.80768505]
[1772820625437,0.51900741,84.592,84.54,0.80768505]
[1772820626035,4.90713699,84.6,84.544,0.80768505]
[1772820626233,16.72755155,84.6,84.549,0.14216157]
[1772820626442,11.82041456,84.6,84.558,0.80768505]
[1772820627735,0.52007384,84.599,84.558,0.80768505]
[1772820628551,0.52059789,84.613,84.564,0.80768505]
[1772820628757,0.52059789,84.613,84.568,0.80768505]
[1772820629562,6.96079969,84.626,84.559,100.66369091]
[1772820629563,0.84511192,84.629,84.581,0.14216157]
[1772820629861,0.84511192,84.629,84.588,0.80768505]
[1772820630430,0.84511192,84.629,84.592,0.80768505]
[1772820630662,0.84511192,84.629,84.598,0.80768505]
[1772820631053,0.84511192,84.629,84.592,0.80768505]
[1772820631857,0.8977839,84.628,84.592,0.80768505]
[1772820632353,0.8977839,84.626,84.593,11.82130909]
[1772820633166,0.8977839,84.626,84.594,0.88032531]
[1772820633369,0.8977839,84.626,84.596,0.88032531]
[1772820634845,0.8977839,84.624,84.596,0.88032531]
[1772820635053,0.8977839,84.624,84.597,11.82075014]
[1772820635262,0.8977839,84.622,84.597,11.82075014]
[1772820635759,4.48812958,84.7,84.597,11.82075014]
[1772820635760,0.8977839,84.634,84.598,0.88032531]
[1772820637561,4.38812958,84.64,84.578,106.41032077]
[1772820637562,0.8977839,84.629,84.599,11.82047069]
[1772820639079,0.8977839,84.619,84.584,0.88032531]
[1772820639384,0.8977839,84.619,84.585,11.82242714]
[1772820639687,0.8977839,84.617,84.585,11.82242714]
[1772820640384,0.8977839,84.609,84.576,0.88032531]
[1772820641570,0.8977839,84.609,84.57,11.82452406]
[1772820641571,0.8977839,84.607,84.578,0.88032531]
[1772820641765,0.8977839,84.629,84.58,0.88032531]
[1772820641965,0.8977839,84.627,84.588,0.88032531]
[1772820643064,11.81655015,84.628,84.588,0.88032531]
[1772820643971,0.8977839,84.633,84.59,0.88032531]
[1772820645090,0.8977839,84.633,84.596,0.88032531]
[1772820645389,0.8977839,84.633,84.598,0.88032531]
[1772820648398,4.38812958,84.63,84.599,11.82047069]
[1772820648574,0.8977839,84.629,84.599,11.82047069]
[1772820648778,0.8977839,84.629,84.6,0.88032531]
[1772820649201,0.8977839,84.629,84.599,11.82047069]
[1772820649202,4.38812958,84.62,84.59,11.82172833]
[1772820649389,0.8977839,84.619,84.586,11.82218369]
[1772820650290,0.8977839,84.617,84.586,11.82218369]
[1772820652103,0.8977839,84.615,84.586,11.82218369]
[1772820652307,0.8977839,84.599,84.551,0.88032531]
[1772820652602,0.8977839,84.589,84.551,0.88032531]
[1772820653103,0.8977839,84.589,84.552,0.14216157]
[1772820653401,0.8977839,84.589,84.553,0.88032531]
[1772820653614,0.8977839,84.589,84.555,0.14216157]
[1772820653923,0.8977839,84.589,84.555,1.02248688]
[1772820654321,0.8977839,84.589,84.558,0.88032531]
[1772820655029,59.09047934,84.616,84.556,41.39268649]
[1772820655030,0.8977839,84.587,84.556,11.82648185]
[1772820655500,0.8977839,84.587,84.557,0.76741882]
[1772820655705,11.82151202,84.592,84.557,0.76741882]
[1772820655919,12.61177872,84.592,84.557,0.76741882]
[1772820656416,0.7902667,84.591,84.559,0.76741882]
[1772820657623,11.82172833,84.59,84.561,0.76741882]
[1772820658001,12.61199503,84.59,84.561,0.76741882]
[1772820658416,0.7902667,84.589,84.561,0.76741882]
[1772820658620,0.7902667,84.589,84.56,11.82592242]
[1772820659526,0.7902667,84.589,84.555,11.82648631]
[1772820659702,0.7902667,84.587,84.55,0.76741882]
[1772820659902,0.7902667,84.579,84.55,0.76741882]
[1772820660829,41.37702746,84.588,84.529,0.14216157]
[1772820660830,0.7902667,84.569,84.535,0.76741882]
[1772820661036,0.7902667,84.559,84.529,11.83025943]
[1772820661834,0.74221097,84.557,84.529,0.74785163]
[1772820662534,0.74221097,84.549,84.513,0.74785163]
[1772820662835,0.74221097,84.557,84.522,0.74785163]
[1772820663432,0.74221097,84.565,84.523,0.8900132]
[1772820663636,0.74221097,84.565,84.526,0.74785163]
[1772820663821,0.74221097,84.572,84.53,0.74785163]
[1772820664212,0.74221097,84.572,84.532,0.74785163]
[1772820665134,0.74221097,84.572,84.538,0.74785163]
[1772820665918,0.74221097,84.57,84.539,12.57671168]
[1772820666450,0.74221097,84.57,84.54,0.74785163]
[1772820666738,0.74221097,84.577,84.54,0.74785163]
[1772820667517,0.74221097,84.575,84.542,0.74785163]
[1772820667733,4.42959976,84.588,84.544,0.74785163]
[1772820667933,4.42959976,84.588,84.549,0.14216157]
[1772820668140,4.42959976,84.588,84.558,0.74785163]
[1772820669840,16.25161178,84.588,84.56,0.74785163]
[1772820670048,4.42959976,84.588,84.56,0.74785163]
[1772820671543,0.74221097,84.586,84.56,0.74785163]
[1772820671934,0.74221097,84.584,84.553,0.74785163]
[1772820672134,0.74221097,84.584,84.549,11.82746099]
[1772820672440,0.74221097,84.579,84.549,11.82746099]
[1772820672945,0.74221097,84.579,84.545,11.82798283]
[1772820673737,0.74221097,84.579,84.546,0.74785163]
[1772820673934,0.74221097,84.579,84.548,0.74785163]
[1772820674725,12.56558582,84.579,84.548,0.74785163]
[1772820675234,4.42959976,84.588,84.548,0.74785163]
[1772820675533,16.25168403,84.588,84.548,0.74785163]
[1772820676030,0.74221097,84.587,84.548,0.74785163]
[1772820676234,4.42959976,84.588,84.548,0.74785163]
[1772820676235,0.74221097,84.586,84.548,0.74785163]
[1772820678850,11.82242714,84.585,84.55,0.74785163]
[1772820679764,0.74221097,84.586,84.55,0.74785163]
[1772820679930,12.56454926,84.586,84.55,0.74785163]
[1772820681257,0.74221097,84.585,84.552,0.74785163]
[1772820682836,0.74221097,84.583,84.554,0.74785163]
[1772820683546,0.74221097,84.583,84.553,11.82690147]
[1772820684034,0.74221097,84.583,84.554,0.74785163]
[1772820684435,11.82256691,84.584,84.554,0.74785163]
[1772820684857,0.74221097,84.583,84.555,12.57447335]
[1772820685159,0.74221097,84.583,84.556,0.74785163]
[1772820685734,0.74221097,84.581,84.556,0.74785163]
[1772820686639,0.74221097,84.585,84.556,0.74785163]
[1772820686954,29.55344056,84.593,84.555,41.39317603]
[1772820686955,0.74221097,84.583,84.557,11.82634199]
[1772820687260,0.74221097,84.583,84.558,0.74785163]
[1772820688847,11.82102961,84.595,84.56,0.74785163]
[1772820689164,12.56324058,84.595,84.56,0.74785163]
[1772820689356,0.74221097,84.594,84.56,0.74785163]
[1772820689554,0.74221097,84.599,84.56,0.74785163]
[1772820691070,4.82477569,84.622,84.549,0.14216157]
[1772820691071,0.74221097,84.62,84.564,0.74785163]
[1772820691368,0.74221097,84.62,84.569,0.14216157]
[1772820691660,0.74221097,84.62,84.578,0.70048333]
[1772820693650,0.74221097,84.62,84.582,0.70048333]
[1772820693869,12.55981416,84.62,84.588,0.70048333]
[1772820694050,0.63182333,84.619,84.588,0.70048333]
[1772820694568,0.63182333,84.619,84.58,0.70048333]
[1772820695760,0.63182333,84.609,84.581,11.82298624]
[1772820696055,0.63182333,84.609,84.582,0.70048333]
[1772820699362,0.63182333,84.623,84.585,0.8426449]
[1772820699761,4.39170462,84.66,84.593,0.70048333]
[1772820699964,4.82477569,84.656,84.598,0.70048333]
[1772820700169,4.39170462,84.65,84.598,0.70048333]
[1772820701881,0.63182333,84.647,84.6,0.70048333]
[1772820703066,0.63182333,84.647,84.602,0.70048333]
[1772820703263,0.63182333,84.647,84.608,0.70048333]
[1772820703760,0.63182333,84.639,84.608,0.70048333]
[1772820704162,0.63182333,84.639,84.61,0.70048333]
[1772820704396,12.44600417,84.645,84.61,0.70048333]
[1772820704567,0.63182333,84.659,84.613,0.14216157]
[1772820704880,0.63182333,84.659,84.618,0.70048333]
[1772820707280,4.39170462,84.66,84.609,41.50891924]
[1772820707281,0.63182333,84.657,84.62,0.70048333]
[1772820708177,0.63182333,84.668,84.622,0.70048333]
[1772820708383,0.63182333,84.677,84.628,0.70048333]
[1772820708679,11.80972176,84.676,84.628,0.70048333]
[1772820708866,0.63182333,84.675,84.628,0.70048333]
[1772820709387,0.63182333,84.675,84.631,0.70048333]
[1772820709564,12.44182403,84.674,84.637,0.70048333]
[1772820710564,0.63182333,84.673,84.637,0.70048333]
[1772820711465,0.63182333,84.673,84.639,0.70048333]
[1772820711667,0.1,84.68,84.641,0.70048333]
[1772820711889,0.1,84.68,84.647,0.70048333]
[1772820713072,0.1,84.68,84.648,41.3476987]
[1772820713271,0.1,84.68,84.649,0.70048333]
[1772820714004,0.1,84.68,84.651,0.70048333]
[1772820714287,0.58378084,84.683,84.653,0.19684864]
[1772820714588,0.58378084,84.683,84.649,0.28432314]
[1772820714589,0.63182333,84.682,84.649,0.28432314]
[1772820714968,0.63182333,84.682,84.649,0.19684864]
[1772820715190,0.63182333,84.68,84.648,29.5340705]
[1772820715377,0.63182333,84.679,84.643,11.81432605]
[1772820716466,0.63182333,84.679,84.645,0.18637624]
[1772820717588,0.63182333,84.679,84.646,0.42648471]
[1772820717786,0.61501108,84.677,84.646,0.42648471]
[1772820720204,0.61501108,84.677,84.648,0.17296585]
[1772820720592,0.1,84.69,84.652,0.14216157]
[1772820720887,4.82477569,84.733,84.661,0.62992478]
[1772820720888,11.80651483,84.699,84.661,0.62992478]
[1772820721086,11.80651483,84.699,84.668,0.62992478]
[1772820721289,4.38092502,84.71,84.668,0.62992478]
[1772820721880,11.80631561,84.701,84.668,0.62992478]
[1772820722081,11.80651483,84.699,84.661,0.62000832]
[1772820722283,4.38092502,84.69,84.652,41.34574493]
[1772820722483,0.62237228,84.689,84.652,41.34574493]
[1772820723092,0.62237228,84.689,84.653,0.62000832]
[1772820724288,0.62237228,84.689,84.639,0.14216157]
[1772820724289,0.62237228,84.689,84.657,0.62000832]
[1772820726779,0.62237228,84.689,84.658,41.96282293]
[1772820727178,0.62237228,84.689,84.659,0.62000832]
[1772820729399,0.62237228,84.689,84.661,0.62000832]
[1772820731001,0.72237228,84.7,84.663,0.62000832]
[1772820731209,0.72237228,84.7,84.667,0.62000832]
[1772820731588,0.72237228,84.7,84.661,0.28432314]
[1772820731589,0.72237228,84.7,84.669,0.62000832]
[1772820735791,0.72237228,84.7,84.671,0.62000832]
[1772820737505,0.72237228,84.7,84.673,0.62000832]
[1772820737903,1.89839994,84.73,84.674,0.76216989]
[1772820738202,11.80358829,84.72,84.674,0.76216989]
[1772820739806,0.62237228,84.719,84.677,0.62000832]
[1772820740405,0.62237228,84.709,84.677,0.62000832]
[1772820741508,11.80284012,84.726,84.678,0.62000832]
[1772820741805,11.80321879,84.723,84.68,0.62000832]
[1772820742584,11.80358829,84.72,84.68,0.62000832]
[1772820743384,0.4657246,84.719,84.68,0.62000832]
[1772820743883,0.4657246,84.719,84.682,0.62000832]
[1772820744286,0.46325634,84.725,84.684,0.62000832]
[1772820744609,1.89839994,84.769,84.683,0.14216157]
[1772820744610,1e-08,84.721,84.696,0.62000832]
[1772820744915,1e-08,84.721,84.698,0.62000832]
[1772820745911,1e-08,84.721,84.7,0.62000832]
[1772820746995,1e-08,84.721,84.702,0.62000832]
[1772820747201,0.46325634,84.738,84.716,0.62000832]
[1772820747401,29.49522206,84.76,84.716,0.62000832]
[1772820747596,0.45602037,84.757,84.716,0.62000832]
[1772820749208,0.45133385,84.768,84.718,0.62000832]
[1772820749910,0.45133385,84.764,84.718,0.62000832]
[1772820750115,0.45133385,84.764,84.721,0.62000832]
[1772820750293,0.45133385,84.764,84.725,0.62000832]
[1772820750498,0.45133385,84.764,84.727,0.62000832]
[1772820750697,0.44903089,84.771,84.727,0.62000832]
[1772820751010,2.34743083,84.769,84.727,0.62000832]
[1772820751327,0.44675437,84.766,84.729,0.62000832]
[1772820752792,0.44227949,84.759,84.728,11.80247379]
[1772820753200,0.44008052,84.757,84.723,11.80317033]
[1772820753694,11.79829632,84.758,84.708,0.54133556]
[1772820753695,0.44008052,84.749,84.708,0.54133556]
[1772820755217,11.79968848,84.748,84.709,11.80512106]
[1772820755517,0.43575807,84.747,84.71,0.54133556]
[1772820757308,0.43153435,84.745,84.712,0.54133556]
[1772820758320,0.4294588,84.759,84.712,0.54133556]
[1772820758709,0.4294588,84.749,84.712,0.54133556]
[1772820759319,1.89839994,84.769,84.714,0.54133556]
[1772820759320,0.42740709,84.747,84.714,0.54133556]
[1772820760227,0.42537895,84.759,84.714,0.54133556]
[1772820760523,0.42537895,84.758,84.714,0.54133556]
[1772820761605,29.49285314,84.767,84.718,0.54133556]
[1772820761606,0.4233741,84.766,84.718,0.54133556]
[1772820763623,1.89839994,84.769,84.721,0.54133556]
[1772820763925,1.89839994,84.769,84.727,0.54133556]
[1772820764419,0.41943322,84.774,84.727,0.54133556]
[1772820764601,12.21370536,84.773,84.727,0.54133556]
[1772820764801,0.41749667,84.772,84.727,0.54133556]
[1772820765308,0.41749667,84.772,84.736,0.14216157]
[1772820765520,0.41749667,84.772,84.737,0.54133556]
[1772820765725,0.41558235,84.77,84.739,0.54133556]
[1772820765909,0.41558235,84.769,84.739,0.54133556]
[1772820766230,0.41558235,84.769,84.738,11.80108097]
[1772820766526,0.41558235,84.769,84.733,0.54133556]
[1772820767926,0.41181944,84.767,84.735,0.54133556]
[1772820768426,11.79682101,84.769,84.735,0.54133556]
[1772820768922,12.20679135,84.769,84.735,0.54133556]
[1772820769322,0.40814247,84.768,84.735,0.54133556]
[1772820769627,0.40814247,84.768,84.734,41.30573322]
[1772820769824,0.40814247,84.766,84.732,0.54133556]
[1772820770430,0.4063356,84.759,84.726,0.54133556]
[1772820770625,0.4063356,84.749,84.726,0.54133556]
[1772820770820,0.4063356,84.749,84.72,0.54133556]
[1772820772020,4.38092502,84.76,84.715,0.54133556]
[1772820772021,0.40454949,84.747,84.715,0.54133556]
[1772820772333,0.40278389,84.729,84.696,11.80689365]
[1772820772534,4.38092502,84.72,84.693,0.54133556]
[1772820772717,4.38092502,84.71,84.695,14.08409663]
[1772820773318,4.38092502,84.71,84.66,0.57597616]
[1772820773627,4.38092502,84.71,84.666,0.57597616]
[1772820773833,4.38092502,84.71,84.668,0.57597616]
[1772820774045,11.80512106,84.709,84.67,0.57597616]
[1772820774424,41.31792371,84.709,84.67,0.57597616]
[1772820775038,4.38092502,84.7,84.67,0.57597616]
[1772820775246,41.31792371,84.709,84.67,0.57597616]
[1772820776443,11.80512106,84.709,84.672,0.57597616]
[1772820777544,41.31792371,84.709,84.672,0.57597616]
[1772820780439,41.31792371,84.709,84.674,0.57597616]
[1772820780750,4.37992674,84.7,84.667,0.57597616]
[1772820781050,41.31792371,84.709,84.667,0.57597616]
[1772820782456,4.37992674,84.69,84.66,0.57597616]
[1772820782628,4.37992674,84.69,84.662,0.57597616]
[1772820782955,4.37992674,84.7,84.662,0.57597616]
[1772820783627,4.37992674,84.72,84.664,0.57597616]
[1772820783832,4.37992674,84.72,84.668,0.57597616]
[1772820784547,11.80372761,84.719,84.67,0.57597616]
[1772820784731,41.31304665,84.719,84.67,0.57597616]
[1772820785147,11.80372761,84.719,84.67,0.57597616]
[1772820785731,4.37992674,84.71,84.67,0.57597616]
[1772820786454,0.0936762,84.709,84.67,0.45665616]
[1772820786754,0.0936762,84.708,84.671,41.33646702]
[1772820788441,0.0936762,84.708,84.672,0.51631616]
[1772820788968,41.31304665,84.719,84.673,41.33549064]
[1772820789133,0.09079131,84.714,84.674,0.51631616]
[1772820789339,0.08937367,84.726,84.676,0.51631616]
[1772820789635,0.08937367,84.726,84.679,0.14216157]
[1772820789833,11.80149879,84.735,84.688,0.51631616]
[1772820790037,0.08937367,84.734,84.688,0.51631616]
[1772820790862,4.37992674,84.73,84.688,0.51631616]
[1772820791152,0.08797231,84.728,84.69,0.51631616]
[1772820793843,0.08797231,84.728,84.692,0.51631616]
[1772820794643,0.08797231,84.728,84.686,0.51631616]
[1772820794843,29.50583625,84.729,84.687,11.80818779]
[1772820794844,0.082526,84.719,84.687,11.80818779]
[1772820795045,0.082526,84.719,84.688,0.51631616]
[1772820795246,0.08120329,84.726,84.688,0.51631616]
[1772820795448,11.80149879,84.735,84.688,0.51631616]
[1772820796058,11.80149879,84.735,84.69,0.51631616]
[1772820796447,11.88139457,84.735,84.69,0.51631616]
[1772820796965,11.80149879,84.735,84.69,0.51631616]
[1772820798263,11.88010207,84.735,84.692,0.51631616]
[1772820798565,0.07732563,84.734,84.692,0.51631616]
[1772820800946,0.07732563,84.734,84.694,0.51631616]
[1772820801753,1.89839994,84.736,84.696,0.51631616]
[1772820801954,0.07358006,84.734,84.698,0.51631616]
[1772820802458,11.80149879,84.735,84.698,0.51631616]
[1772820802662,1.89839994,84.736,84.698,0.51631616]
[1772820802863,11.80106188,84.739,84.698,0.51631616]
[1772820803169,0.07236011,84.74,84.7,0.51631616]
[1772820803358,0.07115417,84.748,84.703,0.14216157]
[1772820803564,0.07115417,84.748,84.708,0.51631616]
[1772820804453,0.07115417,84.748,84.71,0.51631616]
[1772820805471,0.06878368,84.739,84.705,11.80555702]
[1772820805767,0.06878368,84.739,84.706,0.51631616]
[1772820806464,0.06878368,84.739,84.705,12.32187318]
[1772820806673,0.06761882,84.738,84.706,0.51631616]
[1772820806968,0.06761882,84.729,84.685,0.51631616]
[1772820807161,0.06761882,84.719,84.685,0.51631616]
[1772820807564,4.37992674,84.73,84.687,0.51631616]
[1772820807767,0.06646734,84.738,84.697,0.51631616]
[1772820808652,0.06532908,84.719,84.679,0.51631616]
[1772820808856,0.06532908,84.719,84.681,0.51631616]
[1772820810070,11.86905669,84.719,84.681,0.51631616]
[1772820810372,0.06309164,84.718,84.683,0.51631616]
[1772820810576,11.80372761,84.719,84.683,0.51631616]
[1772820810874,4.37992674,84.71,84.683,0.51631616]
[1772820811061,0.06309164,84.71,84.683,0.51631616]
[1772820811475,0.06199215,84.716,84.683,0.51631616]
[1772820811782,0.0609053,84.718,84.683,0.51631616]
[1772820811959,4.37992674,84.73,84.685,0.51631616]
[1772820811960,11.86392949,84.725,84.685,0.51631616]
[1772820812160,0.0609053,84.732,84.688,0.51631616]
[1772820812490,11.80094171,84.739,84.688,0.51631616]
[1772820812491,11.86077264,84.739,84.688,0.51631616]
[1772820813570,11.86077264,84.739,84.69,0.51631616]
[1772820813870,0.0587689,84.738,84.698,0.51631616]
[1772820814377,0.0587689,84.738,84.7,0.51631616]
[1772820816378,0.0587689,84.738,84.702,0.51631616]
[1772820817376,41.29257559,84.761,84.702,0.51631616]
[1772820817377,0.05464137,84.76,84.704,0.51631616]
[1772820817559,0.05464137,84.759,84.708,0.51631616]
[1772820819095,4.37992668,84.762,84.712,0.14216157]
[1772820819300,4.37992668,84.762,84.72,0.14216157]
[1772820819479,4.37992668,84.762,84.727,0.51631616]
[1772820821090,4.37992668,84.762,84.729,0.51631616]